fUSD/lending_fUSD_20240714
["ID","MTS","AMOUNT","RATE_DAILY","PERIOD"]
[332065724,1720947083389,-1462.85,0.00013917,2]
[332065725,1720947083398,-500.0,0.00013917,2]
[332065726,1720947083407,-500.0,0.00013917,2]
[332065727,1720947083416,-500.0,0.00013917,2]
[332065728,1720947083427,-1019.09,0.00013917,2]
[332065729,1720947083436,-500.0,0.00013917,2]
[332065730,1720947083446,-1954.78,0.00013917,2]
[332065731,1720947083455,-1900.61,0.00013917,2]
[332065732,1720947083464,-1133.11,0.00013917,2]
[332065733,1720947083473,-783.41,0.00013917,2]
[332065734,1720947083483,-500.0,0.00013917,2]
[332065735,1720947083494,-500.0,0.00013917,2]
[332065736,1720947083504,-1360.58,0.00013917,2]
[332065737,1720947083512,-532.34,0.00013917,2]
[332065738,1720947083522,-200.463705,0.00013917,2]
[332065739,1720947083533,-500.0,0.00013917,2]
[332065740,1720947083542,-1516.35,0.00013917,2]
[332065741,1720947083551,-200.463705,0.00013917,2]
[332065742,1720947083562,-565.98,0.00013917,2]
[332065743,1720947083575,-973.22,0.00013917,2]
[332065744,1720947083585,-200.463705,0.00013917,2]
[332065745,1720947083594,-923.97,0.00013917,2]
[332065746,1720947083603,-200.463705,0.00013917,2]
[332065747,1720947083614,-500.0,0.00013917,2]
[332065748,1720947083624,-513.15,0.00013917,2]
[332065749,1720947083634,-500.0,0.00013917,2]
[332065750,1720947083644,-151.0,0.00013917,2]
[332065751,1720947083654,-151.0,0.00013917,2]
[332065752,1720947083663,-1966.78,0.00013917,2]
[332065753,1720947083672,-500.0,0.00013917,2]
[332065754,1720947083682,-1253.29,0.00013917,2]
[332065755,1720947083692,-1429.45,0.00013917,2]
[332065756,1720947083704,-500.0,0.00013917,2]
[332065757,1720947083715,-1188.98,0.00013917,2]
[332065758,1720947083725,-500.0,0.00013917,2]
[332065759,1720947083735,-668.44,0.00013917,2]
[332065760,1720947083743,-500.0,0.00013917,2]
[332065761,1720947083754,-500.0,0.00013917,2]
[332065762,1720947083764,-870.18,0.00013917,2]
[332065763,1720947083775,-1262.84,0.00013917,2]
[332065764,1720947083785,-500.0,0.00013917,2]
[332065765,1720947083794,-700.32,0.00013917,2]
[332065766,1720947083807,-855.09,0.00013917,2]
[332065767,1720947083817,-500.0,0.00013917,2]
[332065768,1720947083827,-500.0,0.00013917,2]
[332065769,1720947083836,-500.0,0.00013917,2]
[332065770,1720947083847,-500.0,0.00013917,2]
[332065771,1720947083856,-739.83,0.00013917,2]
[332065772,1720947083868,-1243.55,0.00013917,2]
[332065773,1720947083878,-1077.21,0.00013917,2]
[332065774,1720947083887,-792.72,0.00013917,2]
[332065775,1720947083897,-500.0,0.00013917,2]
[332065776,1720947083906,-739.16,0.00013917,2]
[332065777,1720947083916,-500.0,0.00013917,2]
[332065778,1720947083926,-899.11,0.00013917,2]
[332065779,1720947083936,-500.0,0.00013917,2]
[332065780,1720947083947,-500.0,0.00013917,2]
[332065781,1720947083958,-500.0,0.00013917,2]
[332065782,1720947083967,-1090.12,0.00013917,2]
[332065783,1720947083978,-1590.65,0.00013917,2]
[332065784,1720947083989,-1739.03,0.00013917,2]
[332065785,1720947083999,-500.0,0.00013917,2]
[332065786,1720947084008,-500.0,0.00013917,2]
[332065787,1720947084019,-500.0,0.00013917,2]
[332065788,1720947084028,-500.0,0.00013917,2]
[332065789,1720947084037,-851.62,0.00013917,2]
[332065790,1720947084047,-151.0,0.00013917,2]
[332065791,1720947084056,-151.0,0.00013917,2]
[332065792,1720947084065,-500.0,0.00013917,2]
[332065793,1720947084074,-714.08,0.00013917,2]
[332065794,1720947084083,-235.167234,0.00013917,2]
[332065795,1720947084092,-579.95,0.00013917,2]
[332065796,1720947084102,-1879.97,0.00013917,2]
[332065797,1720947084111,-500.0,0.00013917,2]
[332065798,1720947084120,-1949.87,0.00013917,2]
[332065799,1720947084129,-500.0,0.00013917,2]
[332065800,1720947084138,-954.45,0.00013917,2]
[332065801,1720947084147,-682.65,0.00013917,2]
[332065802,1720947084157,-500.0,0.00013917,2]
[332065803,1720947084166,-500.0,0.00013917,2]
[332065804,1720947084175,-610.20518472,0.00013917,2]
[332065805,1720947084186,-500.0,0.00013917,2]
[332065806,1720947084196,-1125.26,0.00013917,2]
[332065807,1720947084206,-633.08,0.00013917,2]
[332065808,1720947084216,-913.57,0.00013917,2]
[332065809,1720947084226,-500.0,0.00013917,2]
[332065810,1720947084236,-500.0,0.00013917,2]
[332065811,1720947084246,-726.18,0.00013917,2]
[332065812,1720947084257,-500.0,0.00013917,2]
[332065813,1720947084267,-500.0,0.00013917,2]
[332065814,1720947084276,-500.0,0.00013917,2]
[332065815,1720947084285,-500.0,0.00013917,2]
[332065816,1720947084295,-1314.89,0.00013917,2]
[332065817,1720947084305,-1207.8,0.00013917,2]
[332065818,1720947084314,-649.26,0.00013917,2]
[332065819,1720947084325,-500.0,0.00013917,2]
[332065820,1720947084334,-606.84,0.00013917,2]
[332065821,1720947084344,-500.0,0.00013917,2]
[332065822,1720947084355,-2056.68,0.00013917,2]
[332065823,1720947084365,-1267.24,0.00013917,2]
[332065824,1720947084376,-7481.17560424,0.00013917,2]
[332065825,1720947084391,-1803.86439576,0.00013917,2]
[332065826,1720947084401,-689.47,0.00013917,2]
[332065827,1720947084412,-500.0,0.00013917,2]
[332065828,1720947084422,-952.82,0.00013917,2]
[332065829,1720947084432,-500.0,0.00013917,2]
[332065830,1720947084442,-735.83,0.00013917,2]
[332065831,1720947084452,-500.0,0.00013917,2]
[332065832,1720947084462,-1127.41,0.00013917,2]
[332065833,1720947084471,-1355.67,0.00013917,2]
[332065834,1720947084481,-1330.22,0.00013917,2]
[332065835,1720947084494,-934.95,0.00013917,2]
[332065836,1720947084504,-151.0,0.00013917,2]
[332065837,1720947084513,-500.0,0.00013917,2]
[332065838,1720947084524,-151.0,0.00013917,2]
[332065839,1720947084535,-1695.79,0.00013917,2]
[332065840,1720947084544,-971.35,0.00013917,2]
[332065841,1720947084553,-1144.44,0.00013917,2]
[332065842,1720947084565,-500.0,0.00013917,2]
[332065843,1720947084576,-500.0,0.00013917,2]
[332065844,1720947084585,-574.06,0.00013917,2]
[332065845,1720947084595,-500.0,0.00013917,2]
[332065846,1720947084604,-500.0,0.00013917,2]
[332065847,1720947084613,-736.42,0.00013917,2]
[332065848,1720947084623,-500.0,0.00013917,2]
[332065849,1720947084632,-1114.59,0.00013917,2]
[332065850,1720947084643,-733.42,0.00013917,2]
[332065851,1720947084652,-500.0,0.00013917,2]
[332065852,1720947084664,-508.65,0.00013917,2]
[332065853,1720947084674,-1596.48,0.00013917,2]
[332065854,1720947084684,-913.50117774,0.00013917,2]
[332065855,1720947084696,-726.67142415,0.00013917,2]
[332065856,1720947084708,-1618.66739811,0.00013917,2]
[332065857,1720947084719,-500.0,0.00013917,2]
[332065858,1720947084730,-500.0,0.00013917,2]
[332065859,1720947084740,-883.17,0.00013917,2]
[332065860,1720947084750,-1701.98,0.00013917,2]
[332065861,1720947084759,-700.79,0.00013917,2]
[332065862,1720947084768,-500.0,0.00013917,2]
[332065863,1720947084777,-683.32,0.00013917,2]
[332065864,1720947084786,-406.59333538,0.00013917,2]
[332065865,1720947084795,-1471.09,0.00013917,2]
[332065866,1720947084804,-500.0,0.00013917,2]
[332065867,1720947084813,-2903.99712652,0.00013917,2]
[332065868,1720947084826,-686.77,0.00013917,2]
[332065869,1720947084845,-1205.96287348,0.00013917,2]
[332065870,1720947084857,-672.82,0.00013917,2]
[332065871,1720947084867,-500.0,0.00013917,2]
[332065872,1720947084878,-931.53,0.00013917,2]
[332065873,1720947084888,-970.6,0.00013917,2]
[332065874,1720947084899,-1665.99,0.00013917,2]
[332065875,1720947084909,-500.0,0.00013917,2]
[332065876,1720947084919,-2213.79,0.00013917,2]
[332065877,1720947084928,-500.0,0.00013917,2]
[332065878,1720947084937,-500.0,0.00013917,2]
[332065879,1720947084947,-500.0,0.00013917,2]
[332065880,1720947084960,-2663.81,0.00013917,2]
[332065881,1720947084970,-500.0,0.00013917,2]
[332065882,1720947084980,-1949.1,0.00013917,2]
[332065883,1720947084990,-500.0,0.00013917,2]
[332065884,1720947084999,-662.37,0.00013917,2]
[332065885,1720947085009,-715.21,0.00013917,2]
[332065886,1720947085018,-1012.47,0.00013917,2]
[332065887,1720947085027,-804.22,0.00013917,2]
[332065888,1720947085036,-854.0,0.00013917,2]
[332065889,1720947085046,-539.7,0.00013917,2]
[332065890,1720947085055,-500.0,0.00013917,2]
[332065891,1720947085064,-3498.59,0.00013917,2]
[332065892,1720947085073,-500.0,0.00013917,2]
[332065893,1720947085083,-2309.41,0.00013917,2]
[332065894,1720947085093,-500.0,0.00013917,2]
[332065895,1720947085103,-1322.17,0.00013917,2]
[332065896,1720947085112,-500.0,0.00013917,2]
[332065897,1720947085121,-969.16,0.00013917,2]
[332065898,1720947085131,-500.0,0.00013917,2]
[332065899,1720947085140,-500.0,0.00013917,2]
[332065900,1720947085149,-505.71,0.00013917,2]
[332065901,1720947085158,-500.0,0.00013917,2]
[332065902,1720947085168,-470.76135487,0.00013917,2]
[332065903,1720947085178,-1122.06,0.00013917,2]
[332065904,1720947085187,-500.0,0.00013917,2]
[332065905,1720947085196,-500.0,0.00013917,2]
[332065906,1720947085206,-1179.1,0.00013917,2]
[332065907,1720947085215,-3769.96,0.00013917,2]
[332065908,1720947085224,-500.0,0.00013917,2]
[332065909,1720947085233,-500.0,0.00013917,2]
[332065910,1720947085242,-1261.08,0.00013917,2]
[332065911,1720947085251,-892.2,0.00013917,2]
[332065912,1720947085261,-500.0,0.00013917,2]
[332065913,1720947085272,-535.66,0.00013917,2]
[332065914,1720947085281,-500.0,0.00013917,2]
[332065915,1720947085290,-500.0,0.00013917,2]
[332065916,1720947085299,-500.0,0.00013917,2]
[332065917,1720947085309,-613.04,0.00013917,2]
[332065918,1720947085318,-500.0,0.00013917,2]
[332065919,1720947085328,-1092.14,0.00013917,2]
[332065920,1720947085337,-500.0,0.00013917,2]
[332065921,1720947085346,-500.0,0.00013917,2]
[332065922,1720947085355,-673.86,0.00013917,2]
[332065923,1720947085365,-1595.8,0.00013917,2]
[332065924,1720947085374,-1055.17,0.00013917,2]
[332065925,1720947085383,-500.0,0.00013917,2]
[332065926,1720947085392,-500.0,0.00013917,2]
[332065927,1720947085401,-702.8,0.00013917,2]
[332065928,1720947085410,-853.51,0.00013917,2]
[332065929,1720947085420,-500.0,0.00013917,2]
[332065930,1720947085429,-935.92,0.00013917,2]
[332065931,1720947085438,-161.565756,0.00013917,2]
[332065932,1720947085448,-5987.23,0.00013917,2]
[332065933,1720947085457,-500.0,0.00013917,2]
[332065934,1720947085467,-2156.22,0.00013917,2]
[332065935,1720947085477,-500.0,0.00013917,2]
[332065936,1720947085491,-1679.1,0.00013917,2]
[332065937,1720947085501,-8434.82,0.00013917,2]
[332065938,1720947085511,-851.76,0.00013917,2]
[332065939,1720947085521,-161.565756,0.00013917,2]
[332065940,1720947085530,-1079.25,0.00013917,2]
[332065941,1720947085541,-1281.65,0.00013917,2]
[332065942,1720947085550,-708.04,0.00013917,2]
[332065943,1720947085559,-500.0,0.00013917,2]
[332065944,1720947085570,-679.39,0.00013917,2]
[332065945,1720947085580,-500.0,0.00013917,2]
[332065946,1720947085590,-911.76,0.00013917,2]
[332065947,1720947085599,-1619.47,0.00013917,2]
[332065948,1720947085609,-810.45,0.00013917,2]
[332065949,1720947085618,-500.0,0.00013917,2]
[332065950,1720947085628,-500.0,0.00013917,2]
[332065951,1720947085637,-500.0,0.00013917,2]
[332065952,1720947085647,-670.51,0.00013917,2]
[332065953,1720947085657,-500.0,0.00013917,2]
[332065954,1720947085666,-500.0,0.00013917,2]
[332065955,1720947085675,-500.0,0.00013917,2]
[332065956,1720947085684,-732.36,0.00013917,2]
[332065957,1720947085694,-500.0,0.00013917,2]
[332065958,1720947085703,-300.0,0.00013971,2]
[332065959,1720947085712,-300.0,0.00013971,2]
[332065960,1720947085722,-300.0,0.00013971,2]
[332065961,1720947085731,-300.0,0.00013971,2]
[332065962,1720947085740,-300.0,0.00013971,2]
[332065963,1720947085750,-300.0,0.00013971,2]
[332065964,1720947085759,-300.0,0.00013971,2]
[332065965,1720947085768,-500.0,0.00013972,2]
[332065966,1720947085778,-993.31,0.00013972,2]
[332065967,1720947085787,-500.0,0.00013972,2]
[332065968,1720947085796,-500.0,0.00013972,2]
[332065969,1720947085806,-500.0,0.00013972,2]
[332065970,1720947085817,-606.07,0.00013972,2]
[332065971,1720947085827,-500.0,0.00013972,2]
[332065972,1720947085837,-886.23,0.00013972,2]
[332065973,1720947086040,-603.6,0.00013972,2]
[332065974,1720947086051,-500.0,0.00013972,2]
[332065975,1720947086061,-500.0,0.00013972,2]
[332065976,1720947086070,-500.0,0.00013972,2]
[332065977,1720947086080,-500.0,0.00013972,2]
[332065978,1720947086090,-500.0,0.00013972,2]
[332065979,1720947086099,-500.0,0.00013972,2]
[332065980,1720947086109,-616.45,0.00013972,2]
[332065981,1720947086119,-862.26,0.00013972,2]
[332065982,1720947086128,-500.0,0.00013972,2]
[332065983,1720947086138,-500.0,0.00013972,2]
[332065984,1720947086147,-500.0,0.00013972,2]
[332065985,1720947086156,-571.77,0.00013972,2]
[332065986,1720947086165,-500.0,0.00013972,2]
[332065987,1720947086175,-500.0,0.00013972,2]
[332065988,1720947086183,-772.22,0.00013972,2]
[332065989,1720947086193,-533.44,0.00013972,2]
[332065990,1720947086202,-321.29558217,0.00013972,2]
[332065991,1720947086212,-160.89872703,0.00013972,2]
[332065992,1720947086222,-500.0,0.00013972,2]
[332065993,1720947086231,-849.41,0.00013972,2]
[332065994,1720947086241,-535.95,0.00013972,2]
[332065995,1720947086250,-500.0,0.00013972,2]
[332065996,1720947086260,-500.0,0.00013972,2]
[332065997,1720947086269,-508.66,0.00013972,2]
[332065998,1720947086279,-530.35,0.00013972,2]
[332065999,1720947086289,-500.0,0.00013972,2]
[332066000,1720947086299,-857.43,0.00013972,2]
[332066001,1720947086308,-500.0,0.00013972,2]
[332066002,1720947086318,-500.0,0.00013972,2]
[332066003,1720947086327,-565.96,0.00013972,2]
[332066004,1720947086337,-513.28,0.00013972,2]
[332066005,1720947086346,-500.0,0.00013972,2]
[332066006,1720947086355,-647.73,0.00013972,2]
[332066007,1720947086365,-581.66,0.00013972,2]
[332066008,1720947086374,-500.0,0.00013972,2]
[332066009,1720947086384,-522.48,0.00013972,2]
[332066010,1720947086394,-500.0,0.00013972,2]
[332066011,1720947086404,-500.0,0.00013972,2]
[332066012,1720947086414,-500.0,0.00013972,2]
[332066013,1720947086423,-890.99,0.00013972,2]
[332066014,1720947086433,-1261.33,0.00013972,2]
[332066015,1720947086443,-500.0,0.00013972,2]
[332066016,1720947086452,-151.0,0.00013972,2]
[332066017,1720947086461,-500.0,0.00013972,2]
[332066018,1720947086471,-500.0,0.00013972,2]
[332066019,1720947086480,-500.0,0.00013972,2]
[332066020,1720947086495,-500.0,0.00013972,2]
[332066021,1720947086504,-733.78,0.00013972,2]
[332066022,1720947086514,-651.47,0.00013972,2]
[332066023,1720947086526,-230.76405065,0.00013972,2]
[332066024,1720947086544,-527.92814762,0.00013972,2]
[332066025,1720947086557,-353.85780173,0.00013972,2]
[332066026,1720947086567,-963.11,0.00013972,2]
[332066027,1720947086577,-642.95,0.00013972,2]
[332066028,1720947086586,-500.0,0.00013972,2]
[332066029,1720947086595,-34.8994514,0.00013972,2]
[332066030,1720947086607,-116.1005486,0.00013972,2]
[332066031,1720947086616,-558.4,0.00013972,2]
[332066032,1720947086626,-500.0,0.00013972,2]
[332066033,1720947086636,-500.0,0.00013972,2]
[332066034,1720947086645,-821.37,0.00013972,2]
[332066035,1720947086654,-1109.67,0.00013972,2]
[332066036,1720947086663,-557.08,0.00013972,2]
[332066037,1720947086672,-500.0,0.00013972,2]
[332066038,1720947086682,-500.0,0.00013972,2]
[332066039,1720947086693,-151.0,0.00013972,2]
[332066040,1720947086704,-527.01,0.00013972,2]
[332066041,1720947086712,-557.72,0.00013972,2]
[332066042,1720947086722,-500.0,0.00013972,2]
[332066043,1720947086732,-500.0,0.00013972,2]
[332066044,1720947086741,-500.0,0.00013972,2]
[332066045,1720947086750,-546.97,0.00013972,2]
[332066046,1720947086759,-846.58911119,0.00013972,2]
[332066047,1720947086772,-568.63088881,0.00013972,2]
[332066048,1720947086783,-995.56,0.00013972,2]
[332066049,1720947086792,-274.58911119,0.00013972,2]
[332066050,1720947086811,-225.41088881,0.00013972,2]
[332066051,1720947086821,-756.58,0.00013972,2]
[332066052,1720947086830,-496.07086906,0.00013972,2]
[332066053,1720947086842,-3.92913094,0.00013972,2]
[332066054,1720947086851,-500.0,0.00013972,2]
[332066055,1720947086861,-1272.63,0.00013972,2]
[332066056,1720947086871,-500.0,0.00013972,2]
[332066057,1720947086880,-590.27639153,0.00013972,2]
[332066058,1720947086889,-500.0,0.00013972,2]
[332066059,1720947086899,-426.1420843,0.00013972,2]
[332066060,1720947087657,-500.0,0.0001338,2]
[332066061,1720947087667,-500.0,0.00013698,2]
[332066062,1720947087676,-191.24,0.00013698,2]
[332066063,1720947087685,-267.59968283,0.00013698,2]
[332066064,1720947087696,-409.14193754,0.00013698,2]
[332066065,1720947087708,-750.14837963,0.00013698,2]
[332066066,1720947087718,-216.85162037,0.00013698,2]
[332066067,1720947087729,-283.14837963,0.00013698,2]
[332066068,1720947087738,-485.9081284,0.00013698,2]
[332066069,1720947087751,-144.7118716,0.00013698,2]
[332066070,1720947087760,-272.79712845,0.00013698,2]
[332066071,1720947087774,-227.20287155,0.00013698,2]
[332066072,1720947087783,-500.0,0.00013698,2]
[332066073,1720947087793,-500.0,0.00013698,2]
[332066074,1720947087806,-500.0,0.00013753,2]
[332066075,1720947087816,-1426.89,0.00013753,2]
[332066076,1720947087826,-500.0,0.00013753,2]
[332066077,1720947087835,-429.41821229,0.00013753,2]
[332066078,1720947087847,-70.58178771,0.00013753,2]
[332066079,1720947087856,-500.0,0.00013753,2]
[332066080,1720947087866,-500.0,0.00013808,2]
[332066081,1720947087876,-1426.89,0.00013808,2]
[332066082,1720947087885,-500.0,0.00013808,2]
[332066083,1720947087894,-316.27,0.00013808,2]
[332066084,1720947087904,-500.0,0.00013863,2]
[332066085,1720947087913,-1426.89,0.00013863,2]
[332066086,1720947087924,-500.0,0.00013863,2]
[332066087,1720947087934,-322.63,0.00013917,2]
[332066088,1720947087944,-1426.89,0.00013917,2]
[332066089,1720947087953,-390.6179157,0.00013972,2]
[332066090,1720947087963,-1002.26,0.00013972,2]
[332066091,1720947087972,-670.68,0.00013972,2]
[332066092,1720947087982,-519.34577889,0.00013972,2]
[332066093,1720947087994,-216.56422111,0.00013972,2]
[332066094,1720947088004,-979.24,0.00013972,2]
[332066095,1720947088013,-424.15304878,0.00013972,2]
[332066096,1720947088026,-75.84695122,0.00013972,2]
[332066097,1720947088036,-558.27725163,0.00013972,2]
[332066098,1720947088046,-1406.25,0.00013972,2]
[332066099,1720947088056,-500.0,0.00013972,2]
[332066100,1720947088066,-500.0,0.00013972,2]
[332066101,1720947088075,-1016.13,0.00013972,2]
[332066102,1720947088084,-1550.8,0.00013972,2]
[332066103,1720947088094,-1164.55,0.00013972,2]
[332066104,1720947088103,-500.0,0.00013972,2]
[332066105,1720947088112,-602.2,0.00013972,2]
[332066106,1720947088122,-1311.46,0.00013972,2]
[332066107,1720947088132,-604.04,0.00013972,2]
[332066108,1720947088141,-174.69245713,0.00013972,2]
[332066109,1720947088151,-636.91905781,0.00013972,2]
[332066110,1720947088161,-500.0,0.00013972,2]
[332066111,1720947088171,-573.09,0.00013972,2]
[332066112,1720947088180,-1460.3,0.00013972,2]
[332066113,1720947088190,-829.1,0.00013972,2]
[332066114,1720947088200,-500.0,0.00013972,2]
[332066115,1720947088209,-500.0,0.00013972,2]
[332066116,1720947088218,-500.0,0.00013972,2]
[332066117,1720947088228,-500.0,0.00013972,2]
[332066118,1720947088238,-1210.98,0.00013972,2]
[332066119,1720947088247,-858.66,0.00013972,2]
[332066120,1720947088257,-675.59,0.00013972,2]
[332066121,1720947088266,-986.53,0.00013972,2]
[332066122,1720947088276,-609.44,0.00013972,2]
[332066123,1720947088285,-1851.66,0.00013972,2]
[332066124,1720947088295,-500.0,0.00013972,2]
[332066125,1720947088305,-564.92,0.00013972,2]
[332066126,1720947088315,-590.1,0.00013972,2]
[332066127,1720947088324,-500.0,0.00013972,2]
[332066128,1720947088334,-1347.43,0.00013972,2]
[332066129,1720947088343,-1099.72,0.00013972,2]
[332066130,1720947088353,-920.66,0.00013972,2]
[332066131,1720947088362,-880.89,0.00013972,2]
[332066132,1720947088372,-500.0,0.00013972,2]
[332066133,1720947088382,-151.0,0.00013972,2]
[332066134,1720947088391,-551.34,0.00013972,2]
[332066135,1720947088400,-500.0,0.00013972,2]
[332066136,1720947088411,-1945.93,0.00013972,2]
[332066137,1720947088420,-301.981696,0.00013972,2]
[332066138,1720947088429,-896.21,0.00013972,2]
[332066139,1720947088439,-1044.03,0.00013972,2]
[332066140,1720947088448,-151.0,0.00013972,2]
[332066141,1720947088457,-500.0,0.00013972,2]
[332066142,1720947088467,-500.0,0.00013972,2]
[332066143,1720947088477,-500.0,0.00013972,2]
[332066144,1720947088490,-500.0,0.00013972,2]
[332066145,1720947088499,-798.5,0.00013972,2]
[332066146,1720947088509,-151.0,0.00013972,2]
[332066147,1720947088518,-500.0,0.00013972,2]
[332066148,1720947088529,-892.29,0.00013972,2]
[332066149,1720947088539,-674.09,0.00013972,2]
[332066150,1720947088549,-500.0,0.00013972,2]
[332066151,1720947088560,-500.0,0.00013972,2]
[332066152,1720947088569,-1308.83,0.00013972,2]
[332066153,1720947088579,-151.0,0.00013972,2]
[332066154,1720947088589,-500.0,0.00013972,2]
[332066155,1720947088599,-1277.01,0.00013972,2]
[332066156,1720947088608,-773.51,0.00013972,2]
[332066157,1720947088618,-500.0,0.00013972,2]
[332066158,1720947088628,-500.0,0.00013972,2]
[332066159,1720947088637,-500.0,0.00013972,2]
[332066160,1720947088647,-1235.94,0.00013972,2]
[332066161,1720947088656,-1123.01,0.00013972,2]
[332066162,1720947088665,-837.86,0.00013972,2]
[332066163,1720947088675,-711.96,0.00013972,2]
[332066164,1720947088684,-500.18,0.00013972,2]
[332066165,1720947088693,-1136.35,0.00013972,2]
[332066166,1720947088702,-1609.9,0.00013972,2]
[332066167,1720947088711,-526.7,0.00013972,2]
[332066168,1720947088721,-916.2,0.00013972,2]
[332066169,1720947088731,-500.0,0.00013972,2]
[332066170,1720947088740,-564.4,0.00013972,2]
[332066171,1720947088750,-500.0,0.00013972,2]
[332066172,1720947088759,-500.0,0.00013972,2]
[332066173,1720947088769,-533.2,0.00013972,2]
[332066174,1720947088778,-500.0,0.00013972,2]
[332066175,1720947088787,-500.0,0.00013972,2]
[332066176,1720947088797,-1141.86,0.00013972,2]
[332066177,1720947088807,-608.99,0.00013972,2]
[332066178,1720947088816,-500.0,0.00013972,2]
[332066179,1720947088825,-1775.32,0.00013972,2]
[332066180,1720947088834,-592.67,0.00013972,2]
[332066181,1720947088845,-500.0,0.00013972,2]
[332066182,1720947088855,-500.0,0.00013972,2]
[332066183,1720947088866,-1440.72,0.00013972,2]
[332066184,1720947088875,-1056.79010959,0.00013972,2]
[332066185,1720947088891,-15.03989041,0.00013972,2]
[332066186,1720947088900,-473.98697955,0.00013972,2]
[332066187,1720947088912,-804.85302045,0.00013972,2]
[332066188,1720947088922,-1050.62,0.00013972,2]
[332066189,1720947088932,-624.49782567,0.00013972,2]
[332066190,1720947088943,-408.49217433,0.00013972,2]
[332066191,1720947088953,-1860.15,0.00013972,2]
[332066192,1720947088963,-1390.63,0.00013972,2]
[332066193,1720947088972,-830.59,0.00013972,2]
[332066194,1720947088981,-176.41614395,0.00013972,2]
[332066195,1720947088993,-323.58385605,0.00013972,2]
[332066196,1720947089002,-636.36912413,0.00013972,2]
[332066197,1720947089013,-138.97087587,0.00013972,2]
[332066198,1720947089023,-552.05,0.00013972,2]
[332066199,1720947089033,-1096.04,0.00013972,2]
[332066200,1720947089042,-302.8038254,0.00013972,2]
[332066201,1720947089053,-197.1961746,0.00013972,2]
[332066202,1720947089062,-586.17583296,0.00013972,2]
[332066203,1720947089086,-500.0,0.00013808,2]
[332066204,1720947089095,-362.36416704,0.00013972,2]
[332066205,1720947089104,-500.0,0.00013972,2]
[332066206,1720947089113,-694.55,0.00013972,2]
[332066207,1720947089122,-848.72,0.00013972,2]
[332066208,1720947089131,-500.0,0.00013972,2]
[332066209,1720947089140,-500.0,0.00013972,2]
[332066210,1720947089149,-500.0,0.00013972,2]
[332066211,1720947089159,-992.38,0.00013972,2]
[332066212,1720947089168,-565.78,0.00013972,2]
[332066213,1720947089177,-685.69130972,0.00013972,2]
[332066214,1720947089190,-1096.22869028,0.00013972,2]
[332066215,1720947089200,-500.0,0.00013972,2]
[332066216,1720947089209,-40.08945309,0.00013972,2]
[332066217,1720947089221,-856.96054691,0.00013972,2]
[332066218,1720947089230,-436.76722939,0.00013972,2]
[332066219,1720947089241,-924.13277061,0.00013972,2]
[332066220,1720947089250,-696.39,0.00013972,2]
[332066221,1720947089260,-1301.35,0.00013972,2]
[332066222,1720947089271,-452.49071587,0.00013972,2]
[332066223,1720947089280,-500.0,0.00013972,2]